fUST/lending_fUST_20240127
["ID","MTS","AMOUNT","RATE_DAILY","PERIOD"]
[312826909,1706305839797,-334.07278521,0.00035554,2]
[312826910,1706305839806,-477.56661378,0.00035554,2]
[312826911,1706305839815,-150.15279735,0.00035554,2]
[312826912,1706305839825,-173.81582634,0.00035554,2]
[312826913,1706305839834,-387.07160322,0.00035554,2]
[312826914,1706305839843,-548.58829645,0.00035596,2]
[312826915,1706305839852,-2324.250237,0.00035616,120]
[312826916,1706305839862,-180.614189,0.00035616,2]
[312826917,1706305839871,-180.614189,0.00035616,120]
[312826918,1706305839880,-151.01208097,0.00035639,2]
[312826919,1706305839890,-250.51092087,0.00035639,2]
[312826920,1706305839899,-1000.0,0.0003564,10]
[312826921,1706305839908,-163.824937,0.00035845,2]
[312826922,1706305839918,-151.0,0.00036,2]
[312826923,1706305839928,-302.02416193,0.00036238,4]
[312826924,1706305839937,-604.04832387,0.00036847,7]
[312826925,1706305839947,-163.824937,0.00036986,2]
[312826926,1706305839959,-500.0,0.00036999,15]
[312826927,1706305839968,-500.0,0.00036999,15]
[312826928,1706305839977,-500.0,0.00036999,15]
[312826929,1706305839986,-214.7551987,0.00036999,15]
[312826930,1706305839998,-500.0,0.00036999,15]
[312826931,1706305840007,-500.0,0.00036999,15]
[312826932,1706305840016,-500.0,0.00036999,15]
[312826933,1706305840026,-500.0,0.00036999,15]
[312826934,1706305840036,-500.0,0.00036999,15]
[312826935,1706305840046,-500.0,0.00036999,15]
[312826937,1706305840055,-500.0,0.00036999,15]
[312826939,1706305840064,-500.0,0.00036999,15]
[312826940,1706305840074,-500.0,0.00036999,15]
[312826942,1706305840083,-500.0,0.00036999,15]
[312826943,1706305840092,-500.0,0.00036999,15]
[312826944,1706305840101,-269.14502005,0.00036999,15]
[312826945,1706305840110,-500.0,0.00036999,15]
[312826946,1706305840120,-500.0,0.00036999,15]
[312826947,1706305840129,-500.0,0.00036999,15]
[312826948,1706305840138,-233.63265635,0.00036999,15]
[312826949,1706305840146,-500.0,0.00036999,15]
[312826950,1706305840155,-500.0,0.00036999,15]
[312826951,1706305840164,-500.0,0.00036999,15]
[312826952,1706305840173,-500.0,0.00036999,15]
[312826953,1706305840182,-500.0,0.00036999,15]
[312826954,1706305840191,-500.0,0.00036999,15]
[312826955,1706305840200,-500.0,0.00036999,15]
[312826956,1706305840209,-227.266338,0.00036999,15]
[312826957,1706305840218,-500.0,0.00036999,15]
[312826958,1706305840227,-500.0,0.00036999,15]
[312826959,1706305840236,-500.0,0.00036999,15]
[312826960,1706305840245,-500.0,0.00036999,15]
[312826961,1706305840254,-500.0,0.00036999,15]
[312826962,1706305840264,-500.0,0.00036999,15]
[312826963,1706305840273,-500.0,0.00036999,15]
[312826964,1706305840283,-500.0,0.00036999,15]
[312826965,1706305840293,-500.0,0.00036999,15]
[312826966,1706305840302,-500.0,0.00036999,15]
[312826967,1706305840311,-500.0,0.00036999,15]
[312826968,1706305840321,-500.0,0.00036999,15]
[312826969,1706305840331,-500.0,0.00036999,15]
[312826970,1706305840340,-500.0,0.00036999,15]
[312826971,1706305840416,-500.0,0.00036999,15]
[312826972,1706305840425,-500.0,0.00036999,15]
[312826973,1706305840435,-500.0,0.00036999,15]
[312826974,1706305840447,-500.0,0.00036999,15]
[312826975,1706305840456,-500.0,0.00036999,15]
[312826976,1706305840466,-500.0,0.00036999,15]
[312826977,1706305840476,-500.0,0.00036999,15]
[312826978,1706305840485,-500.0,0.00036999,15]
[312826979,1706305840495,-500.0,0.00036999,15]
[312826980,1706305840504,-500.0,0.00036999,15]
[312826981,1706305840513,-500.0,0.00036999,15]
[312826982,1706305840523,-500.0,0.00036999,15]
[312826983,1706305840534,-500.0,0.00036999,15]
[312826984,1706305840543,-500.0,0.00036999,15]
[312826985,1706305840553,-500.0,0.00036999,15]
[312826986,1706305840563,-500.0,0.00036999,15]
[312826987,1706305840573,-500.0,0.00036999,15]
[312826988,1706305840583,-500.0,0.00036999,15]
[312826989,1706305840592,-500.0,0.00036999,15]
[312826990,1706305840601,-500.0,0.00036999,15]
[312826991,1706305840610,-500.0,0.00036999,15]
[312826992,1706305840619,-500.0,0.00036999,15]
[312826993,1706305840628,-500.0,0.00036999,15]
[312826994,1706305840637,-500.0,0.00036999,15]
[312826995,1706305840646,-500.0,0.00036999,15]
[312826996,1706305840656,-500.0,0.00036999,15]
[312826997,1706305840664,-500.0,0.00036999,15]
[312826998,1706305840673,-500.0,0.00036999,15]
[312826999,1706305840682,-522.79940961,0.00036999,15]
[312827000,1706305840691,-500.0,0.00036999,15]
[312827001,1706305840700,-500.0,0.00036999,15]
[312827002,1706305840709,-500.0,0.00036999,15]
[312827003,1706305840719,-500.0,0.00036999,15]
[312827004,1706305840727,-500.0,0.00036999,15]
[312827005,1706305840737,-500.0,0.00036999,15]
[312827006,1706305840746,-500.0,0.00036999,15]
[312827007,1706305840756,-11917.03541669,0.00037,2]
[312827008,1706305840771,-10202.84952288,0.00037,2]
[312827021,1706305840985,-15003.37302407,0.00037,2]
[312827171,1706305842793,-4762.7546007,0.00037,2]
[312827172,1706305842853,-6471.79636645,0.00037,2]
[312827193,1706305846301,-0.01618697,0.00036998,4]
[312827232,1706305966399,-16724.42151809,0.00020673,2]
[312827233,1706305966420,-1503.57848191,0.00020673,2]
[312827235,1706306013762,200.0,0.00022737,7]
[312827236,1706306029005,5658.0,0.0002001,2]
[312827239,1706306038106,-1254.26473598,0.0002067,2]
[312827240,1706306038127,-781.73526402,0.00020671,2]
[312827242,1706306058832,155.0,0.000176,2]
[312827244,1706306069273,39187.0,0.0001,2]
[312827245,1706306069299,8447.89020155,0.0001,2]
[312827246,1706306108224,-2035.76851465,0.00020667,2]
[312827247,1706306108245,-20884.97373293,0.00020667,2]
[312827248,1706306108266,-20911.81082028,0.00020668,2]
[312827249,1706306108286,-470.95501386,0.00020669,2]
[312827250,1706306108306,-2104.85059581,0.00020669,2]
[312827251,1706306108327,-2075.34158496,0.00020669,2]
[312827252,1706306108348,-155.01860223,0.00020672,2]
[312827253,1706306108368,-2001.28113528,0.00020672,2]
[312827254,1706306185507,-453.07430926,0.00020662,2]
[312827255,1706306185527,-561.94551525,0.00020662,2]
[312827256,1706306185548,-243.28513868,0.00020662,2]
[312827257,1706306185568,-1697.20524267,0.00020663,2]
[312827258,1706306185589,-1994.67280692,0.00020664,2]
[312827259,1706306185609,-302.12279675,0.00020664,2]
[312827260,1706306185630,-2062.69419047,0.00020672,2]
[312827261,1706306254366,-155.01395126,0.00020656,2]
[312827262,1706306254386,-2040.23895933,0.00020657,2]
[312827263,1706306254407,-155.01395126,0.00020657,2]
[312827264,1706306254427,-20884.97373293,0.00020657,2]
[312827265,1706306254448,-166.77726809,0.00020657,2]
[312827266,1706306254469,-3747.87536289,0.00020658,2]
[312827267,1706306254492,-1026.83362731,0.00020659,2]
[312827268,1706306254513,-23.13825271,0.00020672,2]
[312827269,1706306254533,-176.13489422,0.00020672,2]
[312827270,1706306314345,200.0,0.00022738,7]
[312827271,1706306333057,-904.20873701,0.00020444,2]
[312827272,1706306333078,-1254.26473598,0.00020445,2]
[312827273,1706306333099,-261.2804971,0.00020445,2]
[312827274,1706306333120,-213.55190572,0.00020446,2]
[312827275,1706306333142,-1580.35552907,0.00020447,2]
[312827276,1706306333164,-199.34410144,0.00020447,2]
[312827277,1706306333187,-156.12493108,0.00020447,2]
[312827278,1706306333208,-453.8695626,0.00020448,2]
[312827279,1706306355730,7619.0523147,0.00019924,2]
[312827280,1706306399828,-243.28513868,0.00020433,2]
[312827281,1706306399849,-617.10324162,0.00020433,2]
[312827282,1706306399869,-1697.20524267,0.00020434,2]
[312827283,1706306399890,-1986.36,0.00020435,3]
[312827284,1706306399911,-3101.37,0.00020435,3]
[312827285,1706306399938,-561.94551525,0.00020443,2]
[312827286,1706306399959,-20884.97373293,0.00020443,2]
[312827287,1706306399979,-904.20873701,0.00020444,2]
[312827288,1706306400001,-1294.44989575,0.00020444,2]
[312827289,1706306400021,-213.55190572,0.00020444,2]
[312827290,1706306400042,-2035.76851465,0.00020445,2]
[312827291,1706306400062,-43886.77807572,0.00020445,2]
[312827292,1706306416143,250.0,0.00019443,2]
[312827293,1706306419658,1469.38428941,0.00015324,2]
[312827295,1706306439657,1350.93104535,0.00015323,2]
[312827296,1706306483847,151.01208097,0.00029,120]
[312827297,1706306494320,1161.7978554,0.00019482,2]
[312827298,1706306512300,-2290.45,0.00020216,3]
[312827299,1706306512333,-261.2804971,0.00020225,2]
[312827300,1706306512360,-561.94551525,0.00020226,2]
[312827301,1706306512386,-155.01395126,0.00020226,2]
[312827302,1706306512414,-1697.20524267,0.00020226,2]
[312827303,1706306512472,-617.10324162,0.00020226,2]
[312827304,1706306512499,-8417.0015521,0.00020226,2]
[312827305,1706306571945,24900.0,0.00019225,2]
[312827306,1706306572452,335.5636504,0.00019379,2]
[312827307,1706306613540,200.0,0.00022234,7]
[312827308,1706306658859,618.016217,0.000193,2]
[312827309,1706306778102,1804.7193975,0.00019205,2]
[312827310,1706306913998,200.0,0.0002218,7]
[312827317,1706306995968,151.00755038,0.00029109,120]
[312827319,1706307009493,24900.0,0.00019155,2]
[312827371,1706307031953,-4105.76443808,0.00020063,2]
[312827373,1706307031963,-1697.20524267,0.00020063,2]
[312827375,1706307031972,-155.00930056,0.00020064,2]
[312827376,1706307031981,-1254.26473598,0.00020064,2]
[312827378,1706307031989,-166.01368,0.00020065,2]
[312827380,1706307031999,-2054.74,0.00020144,3]
[312827382,1706307032008,-19877.61940859,0.00020151,2]
[312827383,1706307032018,-36986.4770049,0.00020151,2]
[312827384,1706307032028,-3587.15,0.00020152,3]
[312827385,1706307032037,-81243.27651671,0.00020162,2]
[312827386,1706307032047,-616.92156387,0.00020224,2]
[312827387,1706307032056,-260.97193245,0.00020225,2]
[312827388,1706307032065,-164.75338796,0.00020225,2]
[312827389,1706307032075,-217.71941071,0.00020225,2]
[312827390,1706307032086,-21697.17964081,0.00020228,2]
[312827391,1706307032098,-422.352785,0.00020432,2]
[312827392,1706307032110,-1289.8366686,0.00020432,2]
[312827393,1706307032119,-11195.53554022,0.00020433,2]
[312827394,1706307032130,-2033.37480073,0.00020433,2]
[312827395,1706307032139,-470.95501386,0.00020441,2]
[312827396,1706307032149,-214.92750533,0.00020442,2]
[312827397,1706307032159,-243.19997644,0.00020442,2]
[312827398,1706307032169,-2104.85059581,0.00020443,2]
[312827399,1706307032178,-524.68591779,0.00020448,2]
[312827400,1706307032187,-38.38595781,0.00020672,2]
[312827401,1706307032197,-2084.071023,0.00020672,2]
[312827402,1706307032206,-926.14289199,0.00020672,2]
[312827403,1706307032218,-80.85710801,0.00020672,2]
[312827404,1706307032227,-166.01368,0.00021158,2]
[312827405,1706307032236,-199.34410144,0.00021394,2]
[312827406,1706307032245,-156.0170265,0.00021394,2]
[312827407,1706307032254,-1577.03889012,0.00021395,2]
[312827408,1706307032263,-166.666666,0.00021918,2]
[312827409,1706307032272,-426.28921801,0.00022,2]
[312827410,1706307032281,-3971.0863798,0.00022,2]
[312827411,1706307032290,-115.31940912,0.0002218,2]
[312827445,1706307037861,-39.68989144,0.0002218,2]
[312827447,1706307037871,-166.01368,0.00022251,2]
[312827449,1706307037881,-166.666666,0.00022431,2]
[312827451,1706307037890,-244.15508901,0.0002272,2]
[312827453,1706307037900,-822.41535326,0.0002272,2]
[312827455,1706307037909,-157.02730238,0.0002272,2]
[312827457,1706307037918,-309.86217546,0.0002272,2]
[312827459,1706307037928,-162.79813879,0.00022721,2]
[312827461,1706307037937,-2446.55712486,0.00022721,2]
[312827463,1706307037946,-1290.37420475,0.00022721,2]
[312827465,1706307037956,-1993.99921548,0.0002273,2]
[312827468,1706307037968,-196.07980542,0.00022731,2]
[312827470,1706307037979,-261.28224959,0.00022732,2]
[312827472,1706307037990,-625.15059201,0.00022732,2]
[312827474,1706307037999,-1785.23156364,0.00022734,2]
[312827476,1706307038009,-166.666666,0.00022944,2]
[312827478,1706307038018,-9945.36507918,0.00023,2]
[312827480,1706307038027,-166.01368,0.00023343,2]
[312827482,1706307038036,-166.666666,0.00023456,2]
[312827484,1706307038045,-166.666666,0.00023969,2]
[312827486,1706307038054,-280.0,0.00024398,7]
[312827488,1706307038063,-166.01368,0.00024436,2]
[312827490,1706307038072,-166.666666,0.00024482,2]
[312827492,1706307038081,-4726.99215817,0.00025,2]
[312827494,1706307038090,-166.01368,0.00025529,2]
[312827496,1706307038100,-236.52378376,0.00026,7]
[312827498,1706307038109,-166.01368,0.00026622,2]
[312827500,1706307038118,-625.90860792,0.00026704,2]
[312827501,1706307038128,-391.0,0.00026838,15]
[312827502,1706307038138,-290.6211574,0.00027,2]
[312827503,1706307038147,-1890.38660348,0.000275,2]
[312827504,1706307038157,-166.01368,0.00027714,2]
[312827505,1706307038166,-224.68405461,0.00028,7]
[312827506,1706307038175,-620.2954304,0.00028039,2]
[312827507,1706307038184,-166.01368,0.00028807,2]
[312827508,1706307038193,-618.016217,0.0002895,2]
[312827509,1706307038203,-1468.74719823,0.00028958,2]
[312827510,1706307038212,-620.01477152,0.00029441,2]
[312827511,1706307038221,-2844.20023866,0.000295,30]
[312827512,1706307038230,-200.0,0.00029522,15]
[312827513,1706307038239,-348.0,0.00029522,15]
[312827514,1706307038249,-309.86217546,0.00029549,2]
[312827515,1706307038258,-2074.57916651,0.00029553,2]
[312827517,1706307038267,-313.6891721,0.00029553,3]
[312827519,1706307038277,-151.00755038,0.00029703,30]
[312827521,1706307038286,-166.01368,0.000299,2]
[312827523,1706307038296,-167.507665,0.00029957,2]
[312827525,1706307038305,-500.0,0.00029999,2]
[312827527,1706307038314,-200.37482181,0.00029999,2]
[312827530,1706307038324,-616.00985202,0.00029999,2]
[312827532,1706307038335,-500.0,0.00029999,2]
[312827534,1706307038344,-565.98166392,0.00029999,2]
[312827536,1706307038353,-504.10895393,0.00029999,2]
[312827538,1706307038362,-500.0,0.00029999,2]
[312827540,1706307038371,-5007.41831529,0.0003,3]
[312827542,1706307038382,-782.40027179,0.0003,14]
[312827544,1706307038393,-419569.60248412,0.0003,30]
[312827546,1706307038404,-155.02015262,0.0003,4]
[312827548,1706307038414,-291.23503982,0.0003,2]
[312827549,1706307038424,-155.02635448,0.0003,2]
[312827551,1706307038433,-195.54104758,0.0003,2]
[312827553,1706307038442,-71500.36504887,0.0003,4]
[312827555,1706307038451,-409.14905199,0.0003,2]
[312827557,1706307038461,-409.14905199,0.0003,2]
[312827559,1706307038471,-409.14905199,0.0003,2]
[312827561,1706307038480,-409.14905199,0.0003,2]
[312827563,1706307038490,-409.14905199,0.0003,2]
[312827565,1706307038499,-409.14905199,0.0003,2]
[312827567,1706307038508,-409.14905199,0.0003,2]
[312827568,1706307038517,-409.14905199,0.0003,2]
[312827570,1706307038526,-409.14905199,0.0003,2]
[312827572,1706307038535,-409.14905,0.0003,2]
[312827575,1706307038546,-158.280104,0.00030137,2]
[312827576,1706307038555,-151.00755038,0.00030309,7]
[312827578,1706307038565,-151.00755038,0.00030928,4]
[312827580,1706307038574,-151.00755038,0.00031559,2]
[312827583,1706307038583,-151.0,0.00031594,2]
[312827585,1706307038593,-155.02015262,0.00032,4]
[312827592,1706307038710,-308.0,0.00032474,15]
[312827593,1706307038720,-20418.2956376,0.00032877,2]
[312827594,1706307038731,-151.0,0.00033189,2]
[312827595,1706307038740,-158.280104,0.0003379,2]
[312827596,1706307038749,-2070.57,0.00034,2]
[312827597,1706307038758,-77286.50371389,0.00034718,2]
[312827598,1706307038767,-151.0,0.00034784,2]
[312827599,1706307038776,-155.01860223,0.00035,4]
[312827600,1706307038785,-151.00755038,0.00035065,2]
[312827601,1706307038794,-250.50340517,0.00035065,2]
[312827602,1706307038803,-244.18511034,0.00035612,4]
[312827603,1706307038813,-619.599095,0.00035613,4]
[312827604,1706307038822,-2324.250237,0.00035616,120]
[312827605,1706307038831,-180.614189,0.00035616,2]
[312827606,1706307038840,-180.614189,0.00035616,120]
[312827607,1706307038849,-302.01510076,0.00035655,4]
[312827608,1706307038858,-265.01896016,0.00035675,4]
[312827609,1706307038868,-3419.44863268,0.00035677,2]
[312827610,1706307038878,-956.62363359,0.0003572,2]
[312827611,1706307038887,-1000.0,0.00035724,10]
[312827612,1706307038896,-151.0,0.00036,2]
[312827613,1706307038905,-576.0,0.000362,2]
[312827614,1706307038914,-604.03020151,0.00036254,7]
[312827615,1706307038923,-151.0,0.00036379,4]
[312827616,1706307038932,-155.0,0.000365,2]
[312827617,1706307038940,-210.47333815,0.00036688,2]
[312827618,1706307038949,-1000.0,0.00036748,2]
[312827619,1706307038958,-245.76147082,0.00036755,2]
[312827620,1706307038968,-167.00227011,0.00036863,4]
[312827621,1706307038977,-1000.0,0.00036873,2]
[312827622,1706307038987,-1000.0,0.00036877,2]
[312827623,1706307038996,-1034.82849037,0.00036877,2]
[312827624,1706307039009,-8965.17150963,0.00036877,2]
[312827625,1706307039018,-1237.67801325,0.00036877,2]
[312827626,1706307039039,-2272.01270733,0.00036877,2]
[312827638,1706307041047,-1176.53203523,0.0002999,3]
[312827640,1706307041222,-1812.75796477,0.0002999,3]
[312827641,1706307041232,-163.824937,0.00030137,2]
[312827642,1706307041241,-163.824937,0.00031279,2]
[312827643,1706307041251,-163.824937,0.0003242,2]
[312827644,1706307041260,-163.824937,0.00033562,2]
[312827645,1706307041270,-163.824937,0.00034703,2]
[312827646,1706307041280,-163.824937,0.00035845,2]
[312827647,1706307041290,-151.0,0.00036,2]
[312827648,1706307041299,-6490.30927942,0.00036877,2]
[312827649,1706307041308,-7125.51773049,0.00036877,2]
[312827656,1706307042968,-2874.48226951,0.00036877,2]
[312827657,1706307042978,-151.0,0.00036877,2]
[312827658,1706307042987,-151.0,0.00036877,2]
[312827659,1706307042996,-151.0,0.00036877,2]
[312827660,1706307043005,-151.0,0.00036877,2]
[312827661,1706307043015,-151.0,0.00036898,2]
[312827662,1706307043025,-151.0,0.00036898,2]
[312827663,1706307043034,-151.0,0.00036898,2]
[312827664,1706307043043,-151.0,0.00036898,2]
[312827665,1706307043053,-303.11412,0.00036898,2]
[312827666,1706307043062,-1062.282448,0.00036898,2]
[312827667,1706307043071,-303.11412,0.00036898,2]
[312827668,1706307043081,-1062.282448,0.00036898,2]
[312827669,1706307043090,-699.111146,0.00036898,2]
[312827670,1706307043100,-9.90237005,0.00036898,2]
[312827671,1706307043112,-1620.63202303,0.00036898,2]
[312827693,1706308113821,200.0,0.00022146,7]
[312827730,1706308233438,-155.00155002,0.00020116,2]
[312827731,1706308233448,-155.00155002,0.00020117,2]
[312827732,1706308233457,-158.90149965,0.00020117,2]
[312827733,1706308233495,-4657.60228717,0.00020117,2]
[312827734,1706308233504,-36986.4770049,0.00020117,2]
[312827735,1706308233512,-4264.89,0.00020118,3]
[312827736,1706308233521,-4407.06,0.00020118,3]
[312827737,1706308233530,-1697.20524267,0.00020127,2]
[312827738,1706308233539,-595.45090393,0.00020128,2]
[312827740,1706308233548,-19877.61940859,0.00020128,2]
[312827741,1706308233557,-9984.61979168,0.00020128,2]
[312827769,1706308238101,-3672.55,0.00020118,3]
[312827771,1706308238110,-6530.29952288,0.00020128,2]
[312827777,1706308238159,-1575.9221681,0.00020128,2]
[312827902,1706308241301,-2081.82231776,0.00020128,2]
[312827906,1706308241333,-4737.91512731,0.00020128,2]
[312827908,1706308241344,-25516.25465267,0.00020128,2]
[312828084,1706308243103,-8835.16775485,0.00020128,2]
[312828088,1706308243133,-898.39954919,0.00020128,2]
[312828412,1706308246268,-1697.20524267,0.00020127,2]
[312828414,1706308246277,-593.34932926,0.00020127,2]
[312828416,1706308246286,-21082.87563227,0.00020128,2]
[312828418,1706308246296,-7965.10067001,0.00020143,2]
[312828420,1706308246305,-167.507665,0.00020163,2]
[312828422,1706308246315,-24900.0,0.00020452,2]
[312828423,1706308246323,-625.15059201,0.00021441,2]
[312828424,1706308246332,-155.00155002,0.00021468,2]
[312828425,1706308246341,-243.02965196,0.00021469,2]
[312828426,1706308246349,-185.50328018,0.000218,2]
[312828427,1706308246358,-22194.01702728,0.000219,2]
[312828428,1706308246367,-165.788815,0.00021918,2]
[312828429,1706308246376,-207.96631632,0.00022,2]
[312828430,1706308246385,-426.28921801,0.00022,2]
[312828431,1706308246394,-3971.0863798,0.00022,2]
[312828432,1706308246403,-9945.36507918,0.00023,2]
[312828433,1706308246412,-280.0,0.00024361,7]
[312828434,1706308246421,-165.788815,0.00024482,2]
[312828436,1706308246430,-498.7732517,0.0002496,5]
[312828438,1706308246439,-4726.99215817,0.00025,2]
[312828440,1706308246448,-850.88910175,0.00025,2]
[312828442,1706308246457,-7387.81433972,0.00025,2]
[312828444,1706308246466,-228.0,0.00026797,15]
[312828446,1706308246475,-910.29159127,0.0002819,2]
[312828448,1706308246484,-291.23503982,0.0003,2]
[312828450,1706308246493,-49450.85570011,0.0003,4]
[312828989,1706308459339,24900.0,0.00019595,2]
[312828993,1706308926387,10750.9242516,0.00019126,2]
[312828994,1706309014947,200.0,0.00022135,7]
[312828995,1706309314351,200.0,0.00022122,7]
[312829078,1706309440755,-588.69915361,0.00020012,2]
[312829079,1706309440771,-265.62893256,0.00020012,2]
[312829080,1706309440783,-179.01727218,0.00020013,2]
[312829082,1706309440795,-153.40122462,0.00020023,2]
[312829083,1706309440808,-876.87188715,0.00020112,3]
[312829084,1706309440835,-2364.06811285,0.00020112,3]
[312829086,1706309440850,-345.12925887,0.00020112,3]
[312829092,1706309442282,-2355.65074113,0.00020112,3]
[312829093,1706309442294,-2250.65,0.00020112,3]
[312829094,1706309442308,-329.74860932,0.0002012,2]
[312829095,1706309442322,-522.41614365,0.00020121,2]
[312829096,1706309442335,-17550.73989494,0.00020122,2]
[312829102,1706309443899,-1213.93996023,0.00020122,2]
[312829104,1706309443917,-1082.88898855,0.00020122,2]
[312829121,1706309520241,1468.66343637,0.0001509,2]
[312829122,1706309550398,266.619742,0.00019122,2]
[312829123,1706309614657,200.0,0.00022117,7]
[312829141,1706309809167,14791.1816197,0.00019115,2]
[312829150,1706309914779,200.0,0.00022131,7]
[312829153,1706310091714,171.9035505,0.00019178,2]
[312829154,1706310092337,266.619742,0.00019119,2]
[312829155,1706310107768,3000.0,0.00019119,2]
[312829156,1706310214837,200.0,0.00022077,7]
[312829157,1706310273477,155.74881665,0.00019969,2]
[312829186,1706310514485,200.0,0.00022077,7]
[312829230,1706310632507,-179.01727218,0.00020001,2]
[312829232,1706310632516,-215.39916729,0.00020001,2]
[312829236,1706310632540,-50.22976527,0.00020001,2]
[312829239,1706310632555,-155.00465014,0.00020002,2]
[312829241,1706310632567,-71.36323139,0.00020002,2]
[312829244,1706310632585,-558.16945685,0.00020002,2]
[312829246,1706310632600,-453.07430926,0.00020003,2]
[312829249,1706310632615,-155.00465014,0.00020004,2]
[312829252,1706310632629,-1254.26473598,0.00020005,2]
[312829254,1706310632641,-173.29617945,0.0002002,2]
[312829256,1706310632655,-11613.56981001,0.00020071,2]
[312829259,1706310632668,-1562.95,0.00020116,3]
[312829261,1706310632681,-1302.46,0.00020116,3]
[312829264,1706310632695,-1875.54,0.00020117,3]
[312829266,1706310632707,-688.13841462,0.0002012,2]
[312829268,1706310632719,-879.06859223,0.0002012,2]
[312829271,1706310632734,-329.74860932,0.0002012,2]
[312829273,1706310632747,-155.05426899,0.0002012,2]
[312829275,1706310632760,-156.12493108,0.0002012,2]
[312829278,1706310632773,-161.1289327,0.0002012,2]
[312829280,1706310632787,-3241.58997755,0.0002012,2]
[312829283,1706310632801,-309.95350775,0.0002012,2]
[312829285,1706310632815,-243.19997644,0.0002012,2]
[312829287,1706310632829,-155.26319905,0.0002012,2]
[312829290,1706310632841,-587.82437591,0.00020121,2]
[312829292,1706310632851,-1633.75201769,0.00020121,2]
[312829294,1706310632863,-3747.87536289,0.00020121,2]
[312829296,1706310632876,-10549.91964157,0.00020121,2]
[312829299,1706310632889,-333.92612896,0.00020122,2]
[312829301,1706310632901,-19712.13660076,0.00020123,2]
[312829303,1706310632912,-244.15508901,0.00020124,2]
[312829306,1706310632924,-262.4952811,0.00020124,2]
[312829308,1706310632938,-167.10938198,0.00020124,2]
[312829310,1706310632949,-261.2804971,0.00020124,2]
[312829312,1706310632961,-2035.76851465,0.00020124,2]
[312829315,1706310632974,-2040.23895933,0.00020124,2]
[312829317,1706310632986,-1528.64972319,0.00020125,2]
[312829319,1706310632998,-4812.6624568,0.00020126,2]
[312829321,1706310633009,-302.12039471,0.00020126,2]
[312829324,1706310633021,-155.32484539,0.00020126,2]
[312829326,1706310633033,-7492.94054802,0.00020127,2]
[312829332,1706310633354,-1327.65119282,0.00020127,2]
[312829367,1706310641712,-297.91664767,0.00020127,2]
[312829399,1706310643490,-7022.05814109,0.00020127,2]
[312829400,1706310643499,-11316.02489252,0.00020127,2]
[312829401,1706310643510,-1007.16641534,0.00022,2]
[312829420,1706310646650,-178.08395101,0.00020126,2]
[312829421,1706310646660,-301.46840306,0.00022,2]
[312829422,1706310646670,-426.28921801,0.00022,2]
[312829423,1706310646679,-297.91664767,0.00022122,2]
[312829424,1706310646688,-2604.88763025,0.00023,2]
[312829473,1706311414594,200.0,0.00022007,7]
[312829505,1706311616897,155.0,0.0002,2]
[312829508,1706311639411,272.7247262,0.0002,2]
[312829510,1706311672291,20351.3425976,0.00019019,2]
[312829512,1706311698679,13938.89120989,0.00019814,2]
[312829514,1706311714668,200.0,0.00022013,7]
[312829516,1706311725444,-1254.26473598,0.00020005,2]
[312829517,1706311725467,-155.0,0.00020006,2]
[312829518,1706311725489,-629.53268824,0.00020006,2]
[312829519,1706311725510,-1580.35552907,0.00020007,2]
[312829520,1706311725533,-2908.28,0.00020007,3]
[312829521,1706311725555,-20911.81082028,0.00020013,2]
[312829522,1706311725577,-309.86217546,0.00020014,2]
[312829523,1706311725597,-4206.19499909,0.00020014,2]
[312829524,1706311725618,-6044.69905188,0.00020014,2]
[312829526,1706311753981,12976.517101,0.00019016,2]
[312829527,1706311756448,8004.59572248,0.00019912,2]
[312829610,1706311832645,-669.88041245,0.00020012,2]
[312829612,1706311832659,-345.05626457,0.00020013,2]
[312829615,1706311832674,-940.57284426,0.00020014,2]
[312829617,1706311832685,-2074.57916651,0.00020015,2]
[312829619,1706311832699,-166.67570924,0.00020015,2]